bitfinex-derivatives/quotes_BTCF0:USTF0_20251219
["timestamp","ask_amount","ask_price","bid_price","bid_amount"]
[1766151770031,0.02438718,88113.0,88093.0,0.0113578]
[1766151770235,0.02434621,88112.0,88097.0,0.0113572]
[1766151770541,0.0113554,88112.0,88097.0,0.0113572]
[1766151772235,0.02435608,88111.0,88097.0,0.0113572]
[1766151772437,0.0113554,88112.0,88097.0,0.0113572]
[1766151772642,0.02435609,88111.0,88097.0,0.0113572]
[1766151772837,0.0113554,88112.0,88097.0,0.0113572]
[1766151773039,0.02435597,88111.0,88097.0,0.0113572]
[1766151773243,0.0113554,88112.0,88097.0,0.0113572]
[1766151773443,0.02436197,88111.0,88097.0,0.0113572]
[1766151773644,0.02436198,88110.0,88097.0,0.0113572]
[1766151773839,0.0113554,88112.0,88097.0,0.0113572]
[1766151774148,0.0243624,88111.0,88099.0,0.011357]
[1766151774450,0.0243624,88110.0,88098.0,0.0113571]
[1766151774742,0.0243624,88109.0,88098.0,0.0113571]
[1766151774944,0.00572,88108.0,88098.0,0.0113571]
[1766151775335,0.00572,88108.0,88095.0,0.0113575]
[1766151776947,0.00572,88108.0,88097.0,0.0113573]
[1766151779949,0.00572,88108.0,88096.0,0.0113574]
[1766151780337,0.0243865,88107.0,88096.0,0.0113574]
[1766151780537,0.0170759,88108.0,88096.0,0.0113574]
[1766151780847,0.02438666,88107.0,88096.0,0.0113574]
[1766151781050,0.00572,88108.0,88096.0,0.0113574]
[1766151781243,0.02438667,88107.0,88096.0,0.0113574]
[1766151781449,0.00572,88108.0,88098.0,0.0113572]
[1766151781651,0.02438639,88107.0,88098.0,0.0113572]
[1766151781850,0.00572,88108.0,88089.0,0.00572]
[1766151782049,0.00572,88108.0,88100.0,0.0113569]
[1766151782745,0.02438645,88107.0,88089.0,0.00572]
[1766151782953,0.02438645,88106.0,88099.0,0.011357]
[1766151783255,0.06089775,88119.0,88087.0,0.0113586]
[1766151783256,0.0113526,88134.0,88097.0,0.00572]
[1766151783456,0.00044,88133.0,88119.0,0.0113544]
[1766151783952,0.0113531,88130.0,88113.0,0.0113552]
[1766151784155,0.01152333,88130.0,88113.0,0.01152543]
[1766151784544,0.01152333,88130.0,88115.0,0.0113549]
[1766151785254,0.00017023,88130.0,88113.0,0.00017023]
[1766151785455,0.0113534,88128.0,88113.0,0.00017023]
[1766151785649,0.00017023,88130.0,88113.0,0.00017023]
[1766151785850,0.0113533,88129.0,88113.0,3e-08]
[1766151786050,0.00017023,88130.0,88113.0,3e-08]
[1766151786249,0.0113542,88122.0,88113.0,3e-08]
[1766151786448,0.00572,88124.0,88113.0,3e-08]
[1766151786647,0.011354,88123.0,88113.0,3e-08]
[1766151787244,0.00572,88124.0,88113.0,3e-08]
[1766151787744,0.0113551,88114.0,88113.0,3e-08]
[1766151787940,0.0161149,88116.0,88090.0,2.3968781]
[1766151788139,0.0161149,88116.0,88090.0,0.0113581]
[1766151788140,0.00476,88116.0,88090.0,0.0113581]
[1766151788348,0.0113567,88102.0,88087.0,0.0113585]
[1766151788958,0.0113567,88102.0,88072.0,0.11348354]
[1766151788959,0.0113571,88099.0,88072.0,0.00572]
[1766151789149,0.0113571,88099.0,88083.0,0.0113591]
[1766151789657,0.0113567,88102.0,88083.0,0.0113591]
[1766151790053,0.011357,88100.0,88083.0,0.0113591]
[1766151790551,0.00017023,88103.0,88073.0,0.05678]
[1766151790758,0.011357,88100.0,88082.0,0.0113591]
[1766151791053,0.01152683,88103.0,88085.0,0.0113588]
[1766151791254,0.00017023,88103.0,88087.0,0.0113585]
[1766151791951,0.00017023,88103.0,88096.0,0.0113574]
[1766151792152,2.3e-07,88104.0,88096.0,0.0113574]
[1766151792355,2.3e-07,88104.0,88095.0,0.0113575]
[1766151792653,0.23831017,88130.0,88090.0,0.22695707]
[1766151792654,0.0113547,88118.0,88090.0,0.22695707]
[1766151792848,0.00364,88117.0,88091.0,0.00572]
[1766151793249,0.00017023,88113.0,88095.0,0.00017023]
[1766151793449,0.00017023,88113.0,88101.0,0.0113567]
[1766151794155,2.3e-07,88113.0,88105.0,0.0113562]
[1766151794350,0.0148342,88122.0,88100.0,0.22695707]
[1766151794755,0.0113544,88120.0,88102.0,0.0113566]
[1766151795248,0.01152463,88120.0,88102.0,0.0113566]
[1766151795653,0.01152463,88120.0,88104.0,0.0113563]
[1766151796048,0.0113547,88118.0,88102.0,0.0113566]
[1766151796657,0.011355,88115.0,88099.0,0.017077]
[1766151797048,0.00017023,88120.0,88099.0,0.00572]
[1766151797344,0.0113549,88116.0,88100.0,0.0113569]
[1766151797546,0.2271273,88120.0,88095.0,0.00017023]
[1766151797752,0.0113557,88110.0,88096.0,0.00572]
[1766151799052,0.0113553,88113.0,88096.0,0.0170774]
[1766151799251,0.0113553,88113.0,88098.0,0.0113571]
[1766151799762,0.0113549,88116.0,88100.0,0.0113569]
[1766151799962,0.0113548,88117.0,88096.0,0.00572]
[1766151800259,0.0113545,88119.0,88105.0,0.0113562]
[1766151800661,0.0113545,88119.0,88102.0,0.0113566]
[1766151800850,0.0113545,88119.0,88104.0,0.0113563]
[1766151802758,0.02406943,88118.0,88104.0,0.0113563]
[1766151802962,0.0113545,88119.0,88104.0,0.0113563]
[1766151803162,0.02406968,88118.0,88104.0,0.0113563]
[1766151803364,0.0113545,88119.0,88104.0,0.0113563]
[1766151803663,0.02406957,88118.0,88104.0,0.0113563]
[1766151803862,0.0113545,88119.0,88104.0,0.0113563]
[1766151804363,0.0113548,88117.0,88104.0,0.0113563]
[1766151804564,0.00572,88116.0,88104.0,0.0113563]
[1766151805864,0.00572,88116.0,88101.0,0.0113568]
[1766151806070,0.0170749,88116.0,88101.0,0.0113568]
[1766151806362,0.00572,88116.0,88096.0,0.00572]
[1766151807159,0.00572,88116.0,88095.0,0.00017023]
[1766151807468,0.00572,88116.0,88096.0,0.00572]
[1766151808069,0.00572,88116.0,88102.0,0.0113565]
[1766151808366,0.00572,88116.0,88104.0,0.0113564]
[1766151811162,0.00572,88116.0,88101.0,0.0113567]
[1766151811659,0.00572,88116.0,88103.0,0.0113565]
[1766151811859,0.00572,88116.0,88096.0,0.00572]
[1766151812171,0.00572,88116.0,88106.0,0.0113561]
[1766151812466,0.0046,88117.0,88100.0,0.22694772]
[1766151812663,0.00232,88123.0,88115.0,0.011355]
[1766151812860,0.00232,88123.0,88107.0,0.22694772]
[1766151812861,0.00232,88126.0,88108.0,0.00572]
[1766151813060,0.00232,88126.0,88116.0,0.0113548]
[1766151813477,0.0136737,88126.0,88108.0,0.00572]
[1766151813668,0.01384393,88126.0,88111.0,0.0113554]
[1766151814565,0.00249023,88126.0,88110.0,0.0113556]
[1766151814864,0.00249023,88126.0,88108.0,0.00589023]
[1766151814865,0.00249023,88126.0,88113.0,0.0113552]
[1766151816259,0.00249023,88126.0,88115.0,0.011355]
[1766151817071,0.00249023,88126.0,88112.0,0.0113553]
[1766151817072,0.01384383,88126.0,88112.0,0.0113553]
[1766151817475,0.0113539,88124.0,88109.0,0.0113557]
[1766151818067,3e-08,88126.0,88124.0,0.0113537]
[1766151818268,0.01361505,88178.0,88140.0,0.45389544]
[1766151818570,0.0113474,88174.0,88160.0,0.22694772]
[1766151818773,0.00226815,88178.0,88161.0,0.00572]
[1766151819068,0.0113475,88174.0,88154.0,0.0113499]
[1766151819259,0.22694772,88170.0,88137.0,2.38532]
[1766151819464,0.0113494,88159.0,88140.0,0.0113517]
[1766151819663,0.00436,88173.0,88142.0,0.0113515]
[1766151820270,0.00436,88173.0,88149.0,0.00017013]
[1766151820271,0.00017013,88166.0,88149.0,0.00017013]
[1766151820570,0.011349,88162.0,88149.0,0.00017013]
[1766151820963,0.00017013,88166.0,88149.0,0.00017013]
[1766151821165,0.0113493,88160.0,88149.0,0.00017013]
[1766151821468,0.00017013,88166.0,88149.0,1.3e-07]
[1766151821469,0.0113496,88157.0,88149.0,1.3e-07]
[1766151821671,0.0113503,88152.0,88142.0,0.00168]
[1766151821865,0.0113503,88152.0,88139.0,0.00168]
[1766151822260,0.0113503,88152.0,88139.0,0.00572]
[1766151822968,0.00572,88164.0,88139.0,0.00572]
[1766151822969,0.0113499,88155.0,88139.0,0.00572]
[1766151827173,0.0113495,88158.0,88139.0,0.00572]
[1766151827973,0.0113495,88158.0,88140.0,0.0113517]
[1766151828181,0.0113498,88156.0,88140.0,0.0113517]
[1766151828474,0.0113498,88156.0,88139.0,0.00572]
[1766151828676,0.00017013,88166.0,88139.0,0.00572]
[1766151828881,0.0113487,88164.0,88146.0,0.0113509]
[1766151829089,0.0113491,88161.0,88145.0,0.0113511]
[1766151829273,0.0113494,88159.0,88141.0,0.0113515]
[1766151830181,0.011349,88162.0,88139.0,0.00572]
[1766151830371,0.00017013,88166.0,88140.0,0.0113518]
[1766151830572,0.00017013,88166.0,88150.0,0.0113504]
[1766151831577,0.0113486,88165.0,88148.0,0.0056]
[1766151833377,0.0113494,88159.0,88148.0,0.0056]
[1766151833677,0.00017013,88166.0,88142.0,0.00448]
[1766151833873,0.0113496,88157.0,88142.0,0.00448]
[1766151834069,0.011351,88147.0,88137.0,0.00017013]
[1766151834982,0.0113505,88150.0,88137.0,0.00017013]
[1766151838892,0.00564,88161.0,88137.0,1.3e-07]
[1766151839070,0.0113509,88148.0,88137.0,1.3e-07]
[1766151839271,0.0113506,88149.0,88137.0,1.3e-07]
[1766151839487,0.011351,88147.0,88137.0,1.3e-07]
[1766151840888,0.0113506,88150.0,88137.0,1.3e-07]
[1766151841187,0.0113508,88148.0,88137.0,1.3e-07]
[1766151841384,0.011351,88147.0,88137.0,1.3e-07]
[1766151841583,0.0113513,88144.0,88137.0,1.3e-07]
[1766151842084,0.0113508,88148.0,88137.0,1.3e-07]
[1766151842283,0.0113501,88153.0,88137.0,1.3e-07]
[1766151842484,0.0113501,88153.0,88139.0,0.0113519]
[1766151843191,0.0113483,88167.0,88137.0,1.3e-07]
[1766151843192,0.28339381,88150.0,88137.0,1.3e-07]
[1766151843491,0.0113515,88143.0,88137.0,1.3e-07]
[1766151844089,0.23258349,88150.0,88137.0,1.3e-07]
[1766151844090,0.0113517,88141.0,88137.0,1.3e-07]
[1766151844297,0.22686349,88147.0,88137.0,1.3e-07]
[1766151844593,0.00017013,88148.0,88137.0,1.3e-07]
[1766151844792,0.01152093,88148.0,88137.0,1.3e-07]
[1766151844980,0.0113512,88145.0,88137.0,1.3e-07]
[1766151845294,0.0113511,88146.0,88137.0,1.3e-07]
[1766151845486,0.0113513,88144.0,88137.0,1.3e-07]
[1766151845992,0.01152103,88148.0,88137.0,1.3e-07]
[1766151848290,0.0113516,88142.0,88137.0,1.3e-07]
[1766151849392,0.0113512,88145.0,88137.0,1.3e-07]
[1766151850089,0.0113514,88143.0,88137.0,1.3e-07]
[1766151853196,0.00017013,88148.0,88137.0,1.3e-07]
[1766151854902,0.0113514,88143.0,88137.0,1.3e-07]
[1766151855703,0.00017013,88148.0,88137.0,1.3e-07]
[1766151855905,0.0113517,88141.0,88137.0,1.3e-07]
[1766151856607,0.0113519,88139.0,88137.0,1.3e-07]
[1766151857310,0.0113524,88136.0,88122.0,0.05678]
[1766151857517,0.0113524,88136.0,88123.0,0.00572]
[1766151857715,0.0113526,88134.0,88123.0,0.00572]
[1766151858415,0.00013113,88138.0,88123.0,0.00572]
[1766151858811,0.0113525,88135.0,88123.0,0.00572]
[1766151859907,0.0113522,88137.0,88123.0,0.00572]
[1766151860102,0.00013113,88138.0,88123.0,0.0170739]
[1766151860306,0.00013113,88138.0,88125.0,0.0113537]
[1766151860719,0.00013113,88138.0,88123.0,0.00572]
[1766151861820,0.00013113,88138.0,88129.0,0.0113532]
[1766151862212,0.00013113,88138.0,88126.0,0.0113535]
[1766151862416,0.00013113,88138.0,88128.0,0.0113533]
[1766151863520,0.00013113,88138.0,88125.0,0.0113536]
[1766151863720,0.00013113,88138.0,88123.0,0.00572]
[1766151863912,0.01148323,88138.0,88124.0,0.0113538]
[1766151864720,0.00013113,88138.0,88124.0,0.0113538]
[1766151866310,0.00013113,88138.0,88123.0,0.0170739]
[1766151866512,0.00013113,88138.0,88125.0,0.0113537]
[1766151868225,0.01148323,88138.0,88123.0,0.00572]
[1766151869020,0.0113523,88136.0,88123.0,0.00572]
[1766151871417,0.0113523,88136.0,88123.0,0.0170739]
[1766151872329,0.00013113,88138.0,88123.0,0.0170739]
[1766151872620,0.00013113,88138.0,88123.0,0.00572]
[1766151873322,0.0113522,88137.0,88123.0,0.00572]
[1766151874429,0.00013113,88138.0,88123.0,0.0170738]
[1766151874832,0.00013113,88138.0,88124.0,0.0113537]
[1766151875020,0.00013113,88138.0,88125.0,0.0113536]
[1766151875222,0.00013113,88138.0,88123.0,0.00572]
[1766151875423,0.00013113,88138.0,88127.0,0.0113534]
[1766151876915,0.00013113,88138.0,88123.0,0.00572]
[1766151877116,0.00013113,88138.0,88128.0,0.0113532]
[1766151877930,0.00013113,88138.0,88123.0,0.00572]
[1766151878322,0.00013113,88138.0,88131.0,0.0113529]
[1766151878830,0.00013113,88138.0,88130.0,0.0113531]
[1766151879334,3e-08,88138.0,88128.0,0.22686349]
[1766151879529,3e-08,88138.0,88131.0,0.0113528]
[1766151879734,3e-08,88138.0,88133.0,0.0113526]
[1766151880735,3e-08,88138.0,88130.0,0.011353]
[1766151881537,3e-08,88138.0,88132.0,0.0113528]
[1766151883339,3e-08,88138.0,88128.0,0.22680636]
[1766151883340,0.00017013,88148.0,88139.0,0.0113519]
[1766151883832,0.00017013,88148.0,88136.0,0.0113522]
[1766151884037,0.00017013,88148.0,88129.0,0.00572]
[1766151884038,0.00017013,88148.0,88138.0,0.011352]
[1766151885139,0.00017013,88148.0,88135.0,0.0113523]
[1766151886131,0.00017013,88148.0,88129.0,0.00572]
[1766151887340,0.00017013,88148.0,88137.0,0.0113521]
[1766151889634,0.00017013,88148.0,88139.0,0.0113519]
[1766151890143,0.00017013,88148.0,88134.0,0.0113525]
[1766151890845,0.00017013,88148.0,88137.0,0.0113522]
[1766151891644,0.00017013,88148.0,88129.0,0.00572]
[1766151893639,0.00017013,88148.0,88129.0,0.0170731]
[1766151893844,0.01152103,88148.0,88133.0,0.0113526]
[1766151896943,0.011351,88147.0,88132.0,0.0113528]
[1766151899251,0.00017013,88148.0,88134.0,0.0113525]
[1766151899449,0.0113483,88168.0,88138.0,0.22677843]
[1766151899636,0.0113485,88166.0,88139.0,0.00572]
[1766151899949,0.0113485,88166.0,88143.0,0.04042026]
[1766151900148,0.0113489,88163.0,88146.0,0.011351]
[1766151900339,0.0168284,88167.0,88144.0,0.00572]
[1766151900546,0.0113494,88159.0,88146.0,0.00017013]
[1766151901046,0.0113495,88158.0,88146.0,0.00589013]
[1766151901852,0.0113491,88161.0,88146.0,0.00589013]
[1766151902552,0.0113491,88161.0,88146.0,0.00017013]
[1766151903055,0.00017013,88163.0,88146.0,0.00017013]
[1766151903251,0.0113494,88159.0,88146.0,0.00017013]
[1766151904645,0.011349,88162.0,88147.0,0.0113508]
[1766151904845,0.0113491,88161.0,88146.0,0.01152103]
[1766151905556,0.0113494,88159.0,88146.0,0.00017013]
[1766151907751,0.00017013,88163.0,88146.0,0.00017013]
[1766151908156,0.0113496,88157.0,88129.0,0.04042026]
[1766151908456,0.0170697,88156.0,88130.0,0.0113531]
[1766151908656,0.011351,88147.0,88130.0,0.0113531]
[1766151908860,0.00572,88146.0,88130.0,0.0113531]
[1766151909853,0.00572,88146.0,88129.0,0.00017013]
[1766151909854,0.00572,88146.0,88132.0,0.0113528]
[1766151910167,0.00572,88146.0,88129.0,0.00017013]
[1766151910358,0.00572,88146.0,88132.0,0.0113527]
[1766151912960,0.0170711,88146.0,88129.0,0.01152323]
[1766151913360,0.0170711,88146.0,88131.0,0.0113529]
[1766151914060,0.0170711,88146.0,88129.0,0.00017013]
[1766151914265,0.00572,88146.0,88132.0,0.0113527]
[1766151915264,0.0113513,88144.0,88129.0,0.00017013]
[1766151915563,0.00017013,88145.0,88129.0,0.00017013]
[1766151916162,0.00017013,88145.0,88130.0,0.011353]
[1766151916965,0.00017013,88145.0,88129.0,0.00017013]
[1766151917266,0.00017013,88145.0,88135.0,0.0113523]
[1766151918558,0.00017013,88145.0,88132.0,0.0113527]
[1766151918956,0.00017013,88145.0,88134.0,0.0113525]
[1766151920369,0.00017013,88145.0,88131.0,0.0113528]
[1766151920565,0.01152133,88145.0,88131.0,0.0113528]
[1766151921367,0.00017013,88145.0,88133.0,0.0113526]
[1766151921563,0.00017013,88145.0,88129.0,0.00017013]
[1766151921872,0.00017013,88145.0,88137.0,0.0113521]
[1766151922667,0.00017013,88145.0,88134.0,0.0113525]
[1766151923267,0.00017013,88145.0,88129.0,0.00017013]
[1766151923465,0.00017013,88145.0,88117.0,0.0113546]
[1766151923466,0.22677843,88139.0,88117.0,0.0113546]
[1766151923671,0.0113526,88134.0,88119.0,0.0113544]
[1766151923968,0.0113528,88132.0,88116.0,0.0113548]
[1766151924159,0.00572,88133.0,88118.0,0.0113546]
[1766151924565,0.00572,88133.0,88110.0,0.00572]
[1766151925069,0.00572,88133.0,88114.0,0.011355]
[1766151925568,0.0113531,88130.0,88116.0,0.0113547]
[1766151925768,0.0113531,88130.0,88113.0,0.0113552]
[1766151925970,0.0113534,88128.0,88110.0,0.0113556]
[1766151926165,0.0113529,88132.0,88109.0,0.00572]
[1766151926469,0.00017023,88129.0,88115.0,0.0113549]
[1766151926966,0.00017023,88129.0,88105.0,0.00572]
[1766151927167,0.011354,88123.0,88106.0,0.0113561]
[1766151927368,0.0113545,88119.0,88103.0,0.0113565]
[1766151927765,0.0170742,88122.0,88103.0,0.0113565]
[1766151928072,0.0113542,88121.0,88102.0,0.0113567]
[1766151929072,0.0113542,88121.0,88104.0,0.0113563]
[1766151931164,0.00572,88122.0,88099.0,0.00572]
[1766151931360,0.00572,88122.0,88107.0,0.011356]
[1766151931664,0.00017023,88129.0,88100.0,0.22677843]
[1766151931871,0.00017023,88129.0,88110.0,0.22677843]
[1766151932064,0.0113515,88143.0,88125.0,0.0113536]
[1766151932264,0.00572,88142.0,88125.0,0.0113536]
[1766151932659,0.0113517,88141.0,88122.0,0.0113541]
[1766151932865,0.011352,88139.0,88122.0,0.0113541]
[1766151933164,0.00017023,88139.0,88122.0,0.00017023]
[1766151934076,0.0113532,88129.0,88122.0,0.00017023]
[1766151934371,0.00572,88131.0,88122.0,0.00017023]
[1766151938671,0.00572,88131.0,88122.0,0.01152423]
[1766151939574,0.00572,88131.0,88122.0,0.00017023]
[1766151944979,0.017073,88131.0,88114.0,0.0113551]
[1766151945571,0.00572,88131.0,88112.0,0.00256]
[1766151946673,0.00572,88131.0,88121.0,0.0113541]
[1766151946878,0.00572,88131.0,88112.0,0.00256]
[1766151947181,0.00572,88131.0,88122.0,0.011354]
[1766151947689,0.00572,88131.0,88112.0,0.00256]
[1766151948881,0.017073,88131.0,88116.0,0.0113548]
[1766151949280,0.00572,88131.0,88118.0,0.0113546]
[1766151949580,0.00572,88131.0,88112.0,0.00256]
[1766151949783,0.0113531,88130.0,88115.0,0.011355]
[1766151951471,0.0113533,88128.0,88112.0,0.04298026]
[1766151951675,0.0170731,88131.0,88114.0,0.0113551]
[1766151952278,0.00572,88131.0,88118.0,0.0113546]
[1766151952478,0.00572,88131.0,88112.0,0.04298026]
[1766151953490,0.00572,88131.0,88113.0,0.04042026]
[1766151953891,0.00572,88131.0,88117.0,0.0113547]
[1766151954492,0.00572,88131.0,88113.0,0.04042026]
[1766151954789,0.0113541,88122.0,88108.0,0.04042026]
[1766151954983,0.23823797,88120.0,88106.0,0.04042026]
[1766151955198,0.23823797,88120.0,88105.0,0.00572]
[1766151955490,0.22688357,88120.0,88106.0,0.0113562]
[1766151956285,0.00017023,88122.0,88106.0,0.0113562]
[1766151956988,0.00017023,88122.0,88108.0,0.0113558]
[1766151959583,0.00017023,88122.0,88105.0,0.00572]
[1766151959988,0.00017023,88122.0,88115.0,0.0113549]
[1766151960589,3e-08,88123.0,88119.0,0.0113544]
[1766151960792,3e-08,88123.0,88118.0,0.0113545]
[1766151961093,1.12348528,88168.0,88126.0,0.0113535]
[1766151961094,0.0113515,88143.0,88126.0,0.0113535]
[1766151961283,0.03005404,88142.0,88126.0,0.0113535]
[1766151961484,0.02433404,88141.0,88126.0,0.0113535]
[1766151961679,0.23823537,88140.0,88125.0,0.00017023]
[1766151961895,0.02433404,88139.0,88125.0,0.00017023]
[1766151963193,0.23823537,88140.0,88125.0,0.00017023]
[1766151963491,0.02433677,88139.0,88126.0,0.0113536]
[1766151963698,0.02433677,88138.0,88126.0,0.0113536]
[1766151963995,0.02433677,88137.0,88125.0,0.00017023]
[1766151964186,0.02433677,88136.0,88125.0,0.01152393]
[1766151964389,0.02433677,88135.0,88125.0,0.01152393]
[1766151964586,0.23823537,88140.0,88125.0,0.01152393]
[1766151964787,0.23823537,88140.0,88125.0,0.00017023]
[1766151964788,0.02433598,88139.0,88125.0,0.00017023]
[1766151964994,0.02433598,88138.0,88124.0,0.01072707]
[1766151965193,0.02433598,88137.0,88124.0,0.01072707]
[1766151965390,0.02433598,88136.0,88124.0,0.01072707]
[1766151965599,0.02433598,88135.0,88126.0,0.0113535]
[1766151965802,0.22688357,88140.0,88126.0,0.0113535]
[1766151965995,0.02433562,88139.0,88126.0,0.0113535]
[1766151966197,0.02433562,88138.0,88126.0,0.0113535]
[1766151966396,0.02433562,88137.0,88126.0,0.0113535]
[1766151966596,0.02433562,88136.0,88123.0,0.011354]
[1766151966805,0.02433562,88135.0,88123.0,0.011354]
[1766151967301,0.00572,88136.0,88123.0,0.011354]
[1766151967503,0.02433519,88135.0,88123.0,0.011354]
[1766151967693,0.00572,88136.0,88123.0,0.011354]
[1766151967996,0.02433507,88135.0,88123.0,0.011354]
[1766151968203,0.00572,88136.0,88125.0,0.0113537]
[1766151968404,0.02433519,88135.0,88125.0,0.0113537]
[1766151968597,0.00572,88136.0,88125.0,0.0113537]
[1766151968802,0.02433482,88135.0,88121.0,0.0113542]
[1766151969097,0.00572,88136.0,88121.0,0.0113542]
[1766151969297,0.02433482,88135.0,88121.0,0.0113542]
[1766151969508,0.00572,88136.0,88123.0,0.0113539]
[1766151969693,0.02433446,88135.0,88123.0,0.0113539]
[1766151970004,0.02433446,88134.0,88123.0,0.0113539]
[1766151970301,0.00572,88136.0,88120.0,0.22688357]
[1766151970493,0.02433413,88135.0,88126.0,0.0113536]
[1766151970693,0.02433413,88134.0,88126.0,0.0113536]
[1766151970893,0.00572,88136.0,88126.0,0.0113536]
[1766151971094,0.02433368,88135.0,88126.0,0.0113536]
[1766151971296,0.02433434,88134.0,88125.0,0.0113537]
[1766151971493,0.00572,88136.0,88125.0,0.0113537]
[1766151971694,0.02433334,88135.0,88120.0,0.22688357]
[1766151971897,0.02433334,88134.0,88120.0,0.22688357]
[1766151972094,0.00572,88136.0,88120.0,0.22688357]
[1766151972293,0.02433375,88135.0,88122.0,0.011354]
[1766151972494,0.02433375,88134.0,88122.0,0.011354]
[1766151972693,0.00572,88136.0,88122.0,0.011354]
[1766151972894,0.02433344,88135.0,88122.0,0.011354]
[1766151973090,0.02433344,88134.0,88122.0,0.011354]
[1766151973301,0.00572,88136.0,88122.0,0.011354]
[1766151973501,0.02433338,88135.0,88124.0,0.0113538]
[1766151973802,0.00572,88136.0,88126.0,0.0113535]
[1766151974103,0.0243331,88135.0,88126.0,0.0113535]
[1766151974408,0.00572,88136.0,88125.0,0.0113537]
[1766151974591,0.02433308,88135.0,88124.0,0.00572]
[1766151974794,0.00017023,88142.0,88124.0,0.00572]
[1766151974795,0.00572,88139.0,88132.0,0.0113528]
[1766151974990,0.00572,88139.0,88129.0,0.0113531]
[1766151975195,0.00572,88139.0,88126.0,0.0113535]
[1766151975806,0.00572,88139.0,88124.0,0.00572]
[1766151976003,0.00572,88139.0,88125.0,0.0113537]
[1766151976403,0.00572,88139.0,88124.0,0.00572]
[1766151976597,0.0113523,88137.0,88125.0,0.00572]
[1766151976904,0.00572,88139.0,88125.0,0.00572]
[1766151978091,0.00572,88139.0,88125.0,0.0170736]
[1766151978296,0.00572,88139.0,88127.0,0.0113534]
[1766151978495,0.00572,88139.0,88129.0,0.0113531]
[1766151979505,0.00572,88139.0,88126.0,0.0113536]
[1766151979705,0.00572,88139.0,88125.0,0.00572]
[1766151980105,0.00572,88139.0,88128.0,0.0113532]
[1766151980309,0.00572,88139.0,88130.0,0.011353]
[1766151980705,0.00572,88139.0,88132.0,0.0113527]
[1766151981209,0.00572,88139.0,88128.0,0.0113532]
[1766151981406,0.00572,88139.0,88130.0,0.011353]
[1766151981803,0.00572,88139.0,88125.0,0.00572]
[1766151982307,0.0113499,88155.0,88129.0,0.22688357]
[1766151982607,0.0113501,88153.0,88129.0,0.22688357]
[1766151982815,0.02445433,88152.0,88135.0,0.0113523]
[1766151983004,0.03580473,88151.0,88133.0,0.00572]
[1766151983204,0.0113507,88149.0,88133.0,0.00572]
[1766151983405,0.03017433,88148.0,88133.0,0.00572]
[1766151983615,0.02445433,88147.0,88133.0,0.00572]
[1766151983805,0.0113512,88145.0,88133.0,0.00572]
[1766151984603,0.0170708,88148.0,88133.0,0.00572]
[1766151984804,0.02444916,88147.0,88133.0,0.00572]
[1766151985105,0.0170708,88148.0,88133.0,0.00572]
[1766151985306,0.02444914,88147.0,88133.0,0.00572]
[1766151985515,0.0170708,88148.0,88133.0,0.0170726]
[1766151985719,0.02444919,88147.0,88133.0,0.00572]
[1766151985904,0.00572,88148.0,88133.0,0.00572]
[1766151986209,0.00017023,88150.0,88145.0,0.0113511]
[1766151986407,3e-08,88150.0,88147.0,0.0113508]
[1766151986616,3e-08,88150.0,88144.0,0.0113512]
[1766151986799,3e-08,88150.0,88146.0,0.011351]
[1766151987401,3e-08,88150.0,88143.0,0.0113513]
[1766151987608,3e-08,88150.0,88140.0,0.0113517]
[1766151988405,3e-08,88150.0,88132.0,0.00017023]
[1766151988605,0.2268836,88150.0,88133.0,0.0170727]
[1766151988809,3e-08,88150.0,88137.0,0.0113521]
[1766151989010,3e-08,88150.0,88133.0,0.00572]
[1766151989211,3e-08,88150.0,88133.0,0.0170726]
[1766151989702,3e-08,88150.0,88135.0,0.0113524]
[1766151991208,0.0113509,88147.0,88133.0,0.00572]
[1766151991517,3e-08,88150.0,88136.0,0.0113523]
[1766151991714,3e-08,88150.0,88134.0,0.00572]
[1766151993012,0.2268836,88150.0,88134.0,0.00572]
[1766151993210,0.2268836,88150.0,88137.0,0.0113521]
[1766151993413,3e-08,88150.0,88139.0,0.0113519]
[1766151994723,3e-08,88150.0,88134.0,0.00572]
[1766151994724,3e-08,88150.0,88138.0,0.011352]
[1766151995022,3e-08,88150.0,88134.0,0.0170725]
[1766151995225,3e-08,88150.0,88134.0,0.00572]
[1766151996012,3e-08,88150.0,88136.0,0.0113523]
[1766151996318,3e-08,88150.0,88134.0,0.00572]
[1766151996625,3e-08,88150.0,88137.0,0.0113521]
[1766151997517,3e-08,88150.0,88134.0,0.00572]
[1766151998025,3e-08,88150.0,88137.0,0.0113521]
[1766151999125,3e-08,88150.0,88138.0,0.011352]
[1766151999924,3e-08,88150.0,88140.0,0.22688357]
[1766152000115,0.00316,88158.0,88146.0,0.0113509]
[1766152000316,0.00316,88158.0,88143.0,0.0113513]
[1766152000518,0.02440394,88157.0,88144.0,0.0113512]
[1766152000814,0.00316,88158.0,88143.0,0.0113513]
[1766152001028,0.02440382,88157.0,88143.0,0.0113513]
[1766152001217,0.00316,88158.0,88143.0,0.0113513]
[1766152001533,0.02440381,88157.0,88143.0,0.0113513]
[1766152001827,0.0145095,88158.0,88143.0,0.0113513]
[1766152002126,0.02440498,88157.0,88143.0,0.0113513]
[1766152002322,0.0145095,88158.0,88143.0,0.0113513]
[1766152002523,0.02440671,88157.0,88143.0,0.0113513]
[1766152002726,0.0145095,88158.0,88143.0,0.0113513]
[1766152002927,0.02440672,88157.0,88143.0,0.0113513]
[1766152003128,0.00316,88158.0,88145.0,0.0113511]
[1766152003327,0.02440672,88157.0,88145.0,0.0113511]
[1766152003524,0.00316,88158.0,88145.0,0.0113511]
[1766152003828,0.02440927,88157.0,88145.0,0.0113511]
[1766152004128,0.00316,88158.0,88145.0,0.0113511]
[1766152004317,0.02440914,88157.0,88145.0,0.0113511]
[1766152004627,0.00316,88158.0,88145.0,0.0113511]
[1766152004828,0.02441241,88157.0,88142.0,0.00572]
[1766152005129,0.22688357,88150.0,88142.0,0.00572]
[1766152005317,0.00572,88152.0,88136.0,0.00572]
[1766152006030,0.22688357,88146.0,88121.0,0.06106263]
[1766152006212,0.22688357,88140.0,88106.0,0.06106263]
[1766152006416,0.0113514,88143.0,88113.0,0.0113552]
[1766152006417,0.22688357,88130.0,88113.0,0.0113552]
[1766152006613,0.00572,88129.0,88113.0,0.0113552]
[1766152007130,0.00572,88129.0,88115.0,0.0113549]
[1766152008425,0.00572,88129.0,88112.0,0.01152553]
[1766152009332,0.0113534,88128.0,88112.0,0.00017023]
[1766152010426,0.00572,88129.0,88112.0,0.00017023]
[1766152011722,0.00572,88129.0,88118.0,0.0113545]
[1766152014019,0.00572,88134.0,88117.0,0.00572]
[1766152014224,0.00284,88139.0,88130.0,0.011353]
[1766152015243,0.00284,88139.0,88126.0,0.01152373]
[1766152015424,0.00284,88139.0,88128.0,0.0113533]